Cogmind - Beta 15 @@@ ROGUE MODE // 2025.09.08 @ 20:17:27 Player: GermanMO Result: Destroyed by S-10 Pest with Light Assault Rifle Performance ------------- Evolutions (1) 500 Regions Visited (3) 600 Robots Destroyed (21) 105 Value Destroyed (405) 405 Prototype IDs (1) 20 Alien Tech Used (0) 0 Bonus (0) 0 TOTAL SCORE: 1630 Bonus ------- None Cogmind --------- Core Integrity 0/400 Matter 46/300 Energy 62/100 System Corruption 1% Temperature Cool (72) Movement Core (100) Ox1 Location -9/Materials Parts ------- > --- POWER (1) -------- (None) > --- PROPULSION (3) --- (None) > --- UTILITY (3) ------ Terrain Scan Processor Targeting Computer > --- WEAPON (2) ------- Advanced Beam Cannon > --- INVENTORY (5) ---- Armored Treads Seismic Detector Targeting Computer Peak State ------------ > --- POWER ------------ (None) > --- PROPULSION ------- Armored Treads Armored Treads Flight Unit > --- UTILITY ---------- Improved Terrain Scanner Terrain Scan Processor Targeting Computer > --- WEAPON ----------- Rocket Launcher > --- INVENTORY -------- Armored Treads Seismic Detector Targeting Computer [Rating: 15] Favorites ----------- Power Light Ion Engine Engine Light Ion Engine Propulsion Armored Treads Treads Armored Treads Leg Aluminum Leg Flight Unit Flight Unit Utility Targeting Computer Device Improved Terrain Scanner Processor Targeting Computer Weapon Mining Laser Energy Gun Small Laser Energy Cannon Advanced Beam Cannon Ballistic Gun Assault Rifle Launcher Rocket Launcher Special Weapon Mining Laser Build | -11 -10 -10 -9 ------- Run | Yrd Mat Min Mat Slots Evolved 2 | . . . 2 Power . | . . . . Propulsion 1 | . . . 1 Utility 1 | . . . 1 Weapon . | . . . . Parts Attached 19 | . 1 8 10 Power 3 | . . 2 1 Engine 3 | . . 2 1 Core . | . . . . Reactor . | . . . . Propulsion 6 | . . 3 3 Treads 3 | . . . 3 Leg 2 | . . 2 . Wheel . | . . . . Hover . | . . . . Flight 1 | . . 1 . Utility 5 | . 1 1 3 Device 2 | . 1 . 1 Storage . | . . . . Processor 3 | . . 1 2 Hackware . | . . . . Protection . | . . . . Artifact . | . . . . Weapon 5 | . . 2 3 Energy Gun 1 | . . 1 . Energy Cannon 1 | . . . 1 Ballistic Gun 1 | . . 1 . Ballistic Cannon . | . . . . Launcher 1 | . . . 1 Special Weapon 1 | . . . 1 Impact Weapon . | . . . . Slashing Weapon . | . . . . Piercing Weapon . | . . . . Special Melee Weapon . | . . . . Unidentified Prototypes 1 | . . . 1 Parts Lost 14 | . . 7 7 Power 3 | . . 2 1 Propulsion 5 | . . 2 3 Utility 2 | . . 1 1 Weapon 4 | . . 2 2 Highest Loss Streak 6 | . . 6 4 To Critical Strikes 1 | . . . 1 Average Backups 3 | 3 5 2 3 Power . | . 1 . . Propulsion . | 1 2 . 1 Utility 1 | . . 2 1 Weapon . | 1 2 . . Tool/Special . | . . . . Unused Backups 5 | 2 . . 3 Power . | . . . . Propulsion 4 | 2 . . 2 Utility 1 | . . . 1 Weapon . | . . . . Tool/Special . | . . . . Average Slot Usage (%) 63 | . 1 72 67 Engine 2 | . . 7 . Treads 14 | . . . 21 Leg 5 | . . 21 . Flight 6 | . . 2 8 Device 11 | . 1 14 12 Processor 13 | . . 3 18 Energy Gun 2 | . . 10 . Ballistic Gun 2 | . . 10 . Launcher 1 | . . . 2 Special Weapon 2 | . . . 3 Peak Build Rating 15 | . 1 7 15 Average Rating 9 | . . 5 13 On Entrance . | . . 1 2 Naked Turns 79 | . 79 . . Heaviest Build 8 | . 1 7 8 Greatest Support 40 | 3 3 20 40 Greatest Overweight (x) 1 | . . . 1 Average Overweight (x) . | . . . . Largest Inventory Capacity 5 | 5 5 5 5 Average Capacity 5 | 5 5 5 5 Most Carried 5 | 5 5 5 5 Average Carried 3 | 3 5 2 3 Final Capacity 5 | 5 5 5 5 Final Carried 5 | 5 5 3 3 Class Distribution -------------------- 100% | Mutant Dominant Class ---------------- Mutant | -10/Materials Mutant | -10/Mines Mutant | -9/Materials Resources | -11 -10 -10 -9 ----------- Run | Yrd Mat Min Mat Matter Collected 375 | 200 . 122 53 Remotely . | . . . . Salvage Created 413 | . . 200 213 Parts 36 | . . 12 24 Haulers Intercepted 1 | . . . 1 Recyclers Shooed . | . . . . Parts Field Recycled . | . . . . Retrieved Matter . | . . . . Parts Self-Destructed . | . . . . Prevented . | . . . . Kills | -11 -10 -10 -9 ------- Run | Yrd Mat Min Mat Combat Hostiles Destroyed 17 | . . 5 12 Guns 5 | . . 5 . Cannons 3 | . . . 3 AOE 9 | . . . 9 Classes Destroyed 7 | . . 3 4 Builder 1 | . . . 1 Hauler 1 | . . . 1 Recycler 1 | . . 1 . Mechanic 1 | . . . 1 Swarmer 11 | . . 3 8 Grunt 4 | . . 2 2 Sentry 2 | . . . 2 Best Kill Streak 6 | . . 3 6 Combat Bots Only 5 | . . 3 5 Max Kills in Single Turn 3 | . . 1 3 Gunslinging . | . . . . Exploded 3 | . . . 3 Melee . | . . . . Uniques/NPCs Destroyed . | . . . . Combat | -11 -10 -10 -9 -------- Run | Yrd Mat Min Mat Hostile Shots Fired 204 | . . 67 137 Missed 55 | . . 18 37 Hits 149 | . . 49 100 Melee 3 | . . 3 . Projectile 146 | . . 46 100 Critical Strikes 2 | . . 1 1 Damage Taken 1893 | . . 655 1238 Core 580 | . . 177 403 Absorbed by Shields . | . . . . Core Remaining (%) 64 | 100 . 29 . Volleys Fired 59 | . . 24 35 Largest 2 | . . 2 1 Hottest 100 | . . 60 100 Shots Fired 81 | . . 46 35 Gun 46 | . . 46 . Cannon 5 | . . . 5 Launcher 20 | . . . 20 Special 10 | . . . 10 Kinetic 24 | . . 24 . Thermal 37 | . . 22 15 Explosive 20 | . . . 20 Electromagnetic . | . . . . Robot Hit Streak 8 | . . 7 8 Robot Miss Streak 2 | . . 2 2 Penetration Max . | . . . . Secondary Targets 1 | . . 1 . Max Gunslinging Chain 1 | . . 1 . Shots Hit Robots 48 | . . 30 18 Core Hits 33 | . . 11 22 Critical Kills . | . . . . Critical Parts Destroyed . | . . . . Critical Strikes . | . . . . Melee Attacks . | . . . . Impact . | . . . . Slashing . | . . . . Piercing . | . . . . Sneak Attacks . | . . . . Combat Hostiles . | . . . . Follow-up Attacks . | . . . . Damage Inflicted 1382 | . . 382 1000 Guns 382 | . . 382 . Cannons 101 | . . . 101 Explosions 896 | . . . 896 Melee . | . . . . Ramming 3 | . . . 3 Kinetic 237 | . . 237 . Thermal 246 | . . 145 101 Explosive 896 | . . . 896 Electromagnetic . | . . . . Impact . | . . . . Slashing . | . . . . Piercing . | . . . . Highest Corruption 4 | . . 4 1 Average Corruption 1 | . . 3 1 Corruption Purged . | . . . . Corruption Blocked . | . . . . Effects 1 | . . . 1 Parts Rejected 1 | . . . 1 Overload Shots . | . . . . Overflow Damage 58 | . . . 58 Projectiles 1 | . . . 1 Explosions 57 | . . . 57 Melee . | . . . . Knockbacks . | . . . . Impact . | . . . . Kinetic . | . . . . Secondary . | . . . . Self-Inflicted Damage 239 | . . . 239 Shots 7 | . . . 7 Rammed 2 | . . . 2 Targets Rammed 2 | . . . 2 Kicked . | . . . . Crushed . | . . . . Highest Temperature 129 | . . 129 72 Average Temperature 70 | . . 82 24 Received Heat Transfer 407 | . . 221 186 Siege Activations . | . . . . Martial Activations . | . . . . Shielding Activations . | . . . . Robots Disrupted . | . . . . Combat Hostiles . | . . . . Robots Corrupted . | . . . . Combat Hostiles . | . . . . Parts Fried . | . . . . Impact Corruptions . | . . . . Robots Melted . | . . . . Combat Hostiles . | . . . . Parts Melted 2 | . . 2 . Heat Transferred 510 | . . 325 185 Parts Sabotaged . | . . . . Parts Stolen . | . . . . Parts Stripped . | . . . . Power Chain Reactions . | . . . . Alert | -11 -10 -10 -9 ------- Run | Yrd Mat Min Mat Maximum Alert Level 1 | . . . 1 Low Security (%) 99 | 100 100 100 99 Level 1 . | . . . . Level 2 . | . . . . Level 3 . | . . . . Level 4 . | . . . . Level 5 . | . . . . High Security . | . . . . Max Security . | . . . . Peak Influence 243 | . 4 70 243 Initial . | . . . . Average 32 | . . 25 40 Influence Increases 648 | . 4 125 519 Destroy 0b10 Robot/C 340 | . . 100 240 Destroy 0b10 Robot/NC 20 | . . 5 15 Destroy Leader 62 | . . 20 42 Successful Hack 4 | . 4 . . Disable Machine 45 | . . . 45 Destroy Structure 117 | . . . 117 Lose Combat Pursuer 60 | . . . 60 Influence Decreases 405 | . 4 125 276 Time Decay 299 | . 4 80 215 Lost Part 106 | . . 45 61 Squads Dispatched 1 | . . . 1 Investigation . | . . . . Extermination . | . . . . Reinforcement 1 | . . . 1 Assault . | . . . . Garrison . | . . . . Intercept . | . . . . Searches Triggered . | . . . . Construction Impeded . | . . . . Haulers Reinforced . | . . . . Active Scanning Responses . | . . . . Cargo Convoy Interrupts . | . . . . Stealth | -11 -10 -10 -9 --------- Run | Yrd Mat Min Mat Distress Signals 2 | . . . 2 Communications Jammed . | . . . . Distress Signals . | . . . . Times Spotted 43 | . . 21 22 Peak Tracking Total 17 | . . 17 12 Tactical Retreats 3 | . . 1 2 Traps | -11 -10 -10 -9 ------- Run | Yrd Mat Min Mat Traps Triggered 3 | . 1 . 2 Indirectly . | . . . . Trap Hack Attempts . | . . . . Triggered . | . . . . Disarmed . | . . . . Reprogrammed . | . . . . Reused . | . . . . Traps Extracted . | . . . . Installed . | . . . . Triggered . | . . . . Machines | -11 -10 -10 -9 ---------- Run | Yrd Mat Min Mat Machines Disabled 3 | . . . 3 Max in Single Turn 2 | . . . 2 Machines Repaired . | . . . . Machines Dismantled . | . . . . Machines Sabotaged . | . . . . Overloaded Fab Kills . | . . . . Hacking | -11 -10 -10 -9 --------- Run | Yrd Mat Min Mat Machines Accessed 1 | . 1 . . Terminals 1 | . 1 . . Fabricators . | . . . . Repair Stations . | . . . . Recycling Units . | . . . . Scanalyzers . | . . . . Garrison Access . | . . . . Total Hacks 3 | . 3 . . Successful 2 | . 2 . . Failed 1 | . 1 . . Catastrophic 1 | . 1 . . Database Lockouts . | . . . . Manual . | . . . . Terminals 3 | . 3 . . Fabricators . | . . . . Repair Stations . | . . . . Recycling Units . | . . . . Scanalyzers . | . . . . Garrison Access . | . . . . Terminal Hacks 2 | . 2 . . Record 2 | . 2 . . Fabricator Hacks . | . . . . Repair Station Hacks . | . . . . Recycling Unit Hacks . | . . . . Scanalyzer . | . . . . Garrison Access Hacks . | . . . . Unauthorized Hacks . | . . . . Terminals . | . . . . Fabricators . | . . . . Repair Stations . | . . . . Recycling Units . | . . . . Scanalyzers . | . . . . Garrison Access . | . . . . Data Cores Recovered . | . . . . Used . | . . . . Hacking Detections 1 | . 1 . . Full Trace Events 1 | . 1 . . Feedback Events . | . . . . Feedback Blocked . | . . . . Robot Schematics Acquired . | . . . . Robots Built . | . . . . Authchips . | . . . . Time . | . . . . Total Robot Build Rating . | . . . . Part Schematics Acquired . | . . . . Parts Built . | . . . . Authchips . | . . . . Time . | . . . . Total Part Build Rating . | . . . . Parts Repaired . | . . . . Time . | . . . . Parts Recycled . | . . . . Recycled Matter . | . . . . Retrieved Matter . | . . . . Retrieved Components . | . . . . Parts Scanalyzed . | . . . . Part Schematics Acquired . | . . . . Parts Damaged . | . . . . Bothacking | -11 -10 -10 -9 ------------ Run | Yrd Mat Min Mat Used RIF Installer . | . . . . Robots Hacked . | . . . . Non-combat . | . . . . Combat . | . . . . Robot Hacks Applied . | . . . . Relay Couplers Released . | . . . . Fabnet Peak Effective % . | . . . . Robots Rewired . | . . . . Allies Hacked . | . . . . Hacks Repelled . | . . . . Allies | -11 -10 -10 -9 -------- Run | Yrd Mat Min Mat Total Allies . | . . . . Largest Group . | . . . . Highest-Rated Group . | . . . . Highest-Rated Ally . | . . . . Total Orders . | . . . . Ally Attacks . | . . . . Total Damage . | . . . . Kills . | . . . . Allies Corrupted . | . . . . Allies Melted . | . . . . Intel | -11 -10 -10 -9 ------- Run | Yrd Mat Min Mat Active Infowar (turns) 1153 | . 16 311 826 Terrain 786 | . . . 786 Seismic 475 | . 16 311 148 Robot Analysis Total . | . . . . Derelict Logs Recovered 1 | . . 1 . Drone Launches . | . . . . Drone Recoveries . | . . . . Exploration | -11 -10 -10 -9 ------------- Run | Yrd Mat Min Mat Turns Passed 1278 | 33 95 311 839 Spaces Moved 792 | 50 183 257 302 Core 253 | 50 183 14 6 Treads 109 | . . . 109 Legs 144 | . . 144 . Wheels . | . . . . Hover . | . . . . Flight 286 | . . 99 187 Fastest Speed 40 | 50 50 40 40 Average Speed 83 | 50 50 85 109 Slowest Speed 170 | 50 50 120 170 Overloaded Moves . | . . . . Propulsion Burnouts . | . . . . Robots Hopped 1 | . . . 1 Potential Cave-ins . | . . . . Cave-ins Triggered . | . . . . Exploration Rate (%) 30 | 3 33 53 34 Regions Visited 3 Branch Regions 1 Pre-discovered Areas . | . . . . Known Exits Taken . | . . . . Unknown Exits Taken 3 | 1 1 1 . Scrap Searched 1 | . . 1 . Spaces Dug 10 | . . . 10 Terrain Destroyed 135 | . . . 135 Melee . | . . . . Projectile 10 | . . . 10 AOE 125 | . . . 125 Terrain Rammed . | . . . . Walls Destroyed . | . . . . Machines Disabled . | . . . . Actions | -11 -10 -10 -9 --------- Run | Yrd Mat Min Mat Total 1301 | 58 185 301 757 Wait 403 | . 2 7 394 Move 787 | 49 182 256 300 Hop 1 | . . . 1 Pick Up 23 | 7 . 6 10 Fast Attach 2 | . 1 . 1 Attach 19 | . . 8 11 Detach 2 | . . . 2 Swap . | . . . . Drop 3 | 2 . . 1 Fire 59 | . . 24 35 Melee . | . . . . Ram . | . . . . Kick . | . . . . Crush 2 | . . . 2 Escape Stasis . | . . . . Rewire . | . . . . Trap . | . . . . Miscellaneous . | . . . . Route ------- -11/Scrapyard -10/Materials -10/Mines -9/Materials History --------- Turn | Location | Event 9 | -11/Scrapyard | Discovered new exit (range 14) 34 | -11/Scrapyard | Entered Materials 41 | -10/Materials | Discovered new exit (range 11) 129 | -10/Materials | Entered Mines 130 | -10/Mines | Joined a pair of Derelicts in attacking an 0b10 outpost 191 | -10/Mines | Learned Materials garrison access intel 321 | -10/Mines | Build established: Mutant 369 | -10/Mines | Assembled infested the area 374 | -10/Mines | Assisted by a Guerilla fighting off Assembled 386 | -10/Mines | Core integrity fell below 50% 423 | -10/Mines | Lost 6 parts (1p2n1u2w) 423 | -10/Mines | Discovered new exit (range 16) 434 | -10/Mines | Received a Rocket Launcher from a helpful Derelict 440 | -10/Mines | Entered Materials 440 | -9/Materials | Evolved 2 slots: Propulsion x1, Utility x1 1263 | -9/Materials | Core integrity fell below 50% 1272 | -9/Materials | Core integrity fell below 20% 1279 | -9/Materials | Destroyed by S-10 Pest with Light Assault Rifle Last Messages --------------- Critical hit (Destroy). Arm. Treads destroyed. U-05 Engineer destroyed. Arm. Treads destroyed. Acquired Rocket Launcher. Rocket Launcher destroyed. Destroyed Rocket Launcher. S-10 Pest destroyed. A-02 Transporter destroyed. Imp. Terrain Scanner destroyed. The unstable cave ceiling collapses. Acquired Prototype Energy Cannon. Identified Adv. Beam Cannon. S-10 Pest destroyed. K-01 Serf collects debris. S-10 Pest destroyed. K-01 Serf collects debris. Destroyed Flight Unit. K-01 Serf collects debris. Destroyed Flight Unit. Map ----- +----------------------------------------------------+ | | | | | | | | | | | | | | | | | | | | | | | ????????????#?#########?#??###??#????????????? | | ?????????#????# #?#???#??????????????? | | ????????#??#?## ##????????#??????????? | | ??????????????# ##?##????????????????? | | ?????????###?## #?##??#?#????????????? | | ????????#???### "" """ ####??#?????#?#??????? | | ??????????##?## S"" """ #??#??#??###?????????? | | ???????????#### "" """ #? ######???? ? ?????? | | ?????????##??## #? ????##?# ?????? ??? | | ??????#?????######## ##### ?##????#?? ???? ??? | | ??????????""?###?# ########?##?# ??? ??? | | ????????? ??????## # #?##?#???? ????? | | ?????#?"" ? ?"?### "" ###### ??? ?#? | | ??????# ???? #### [ %""S #####? ????????? | | ????#?????????#?### *@[s*" ##?###? ???"????? | | ???????? ????????# *%]]=%* ########??#?????? | | ??????????? ? ?### !]%#%!g # #?#??????? | | ?????#?#???? #?####=]]+*= #?#???#??? | | ????????#? ##?#### %!# g # ###?#????? | | ??????#?# ###### # #???#???? | | ????????# u # k #????##??? | | ??????#?# # ######## | | ?????? ?# """ # # # | | ??????? # "Y" ###+### # / | | ????????? # =% # # | | ????????? + = "# ### #### | | ????????+ # "" T# ### #?#??? | | ????????# # "" "" "# ##??## ??? | | ????????# # """"""" # ##??#??? ? | | ????????# # """"""" ########## ?# ? | | ?????? ??!! ? # """"""" !##?#?#?###+?# ? | | ????????? ? ? ? ######### ## ####?? # ? ? | | ????????#? ####### ####### # ??? | | ???????????? # """ #? ?? | | ????????? ? # """ #?? | | ???????????? # """ # ?? | | ??????????? # ##?? | | ?????????????"" ###+####+### # #???? | | ????????? ????" ?# # # ##??? | +----------------------------------------------------+ Best States ------------- Heat Dissipation 28 Energy Generation 10 Energy Capacity 125 Matter Stores 300 Matter Capacity 300 Sight Range 16 Terrain Scan Range 16 Terrain Scan Density 85 Evasion (%) 62 Targeting Accuracy 5 Recoil Reduction 2 Item Schematics ----------------- None Robot Schematics ------------------ None Fabricated ------------ Nothing Repaired ---------- Nothing Alien Tech Used ----------------- None Achievements -------------- I Survived The Infestation Challenges ------------ None Game ------ Seed NeutronWeaponWand Manual? 0 Play Time 00:19:18 Cumulative 16.6 hours Start 2025.09.08 @ 19:52:45 End 2025.09.08 @ 20:17:27 Sessions 1 Manual Loads 0 Difficulty Rogue Special Mode None Game No. 20 Rogue 2 Adventurer 0 Explorer 18 Win Type - Total 0 Types 0/0/0/0/0/0/0/0/0/0 Lore% 11 Gallery% 18 Achievement% 24 Wizard Run 0 Options --------- Layout 2 ASCII 0 Keyboard 0 Movement Mouse Keybinds 0 Fullscreen 2 Font 24/Smallcaps Map View 50x44 Zoom Use 0% Tactical HUD 0 Map Filters NONE Filters NONE Steam 1 RUN: e4b11d3d-c0e1-47a1-ac38-cb2e83ca9015